{"text_format":"1","workbook":"xlsx","n_sheets":5,"sheets":["Teams","Dropdowns","PlayoffTree","Standings","Results"],"not_rendered":{"charts":0,"images":66,"macros":1,"external_links":0,"defined_names":87,"comments":0,"pivot_tables":0},"unopened":[],"bounds":{"document_bytes":16777216,"sheet_cells":100000,"rows_first":2000,"rows_last":500,"rows_between":2000,"halvings":0,"cell_chars":16384,"cell_head_chars":4096},"cells_cut":0,"cells_raw":0,"read":"whole","date_system":"1900"}

{"sheet":"Teams","index":0,"n_rows":32,"n_cols":2,"rows_kept":32,"cut":false,"hidden":true,"merged":[]}
["Anaheim","Anaheim"]
["Arizona","Arizona"]
["Boston","Boston"]
["Buffalo","Buffalo"]
["Calgary","Calgary"]
["Carolina","Carolina"]
["Chicago","Chicago"]
["Colorado","Colorado"]
["Columbus","Columbus"]
["Dallas","Dallas"]
["Detroit","Detroit"]
["Edmonton","Edmonton"]
["Florida","Florida"]
["Las Vegas","LV"]
["Los Angeles","LA"]
["Minnesota","Minnesota"]
["Montreal","Montreal"]
["Nashville","Nashville"]
["New Jersey","NJ"]
["NYI","NYI"]
["NYR","NYR"]
["Ottawa","Ottawa"]
["Philadelphia","Philadelphia"]
["Pittsburgh","Pittsburgh"]
["St. Louis","St.Louis"]
["San Jose","SJ"]
["Tampa Bay","TB"]
["Toronto","Toronto"]
["Vancouver","Vancouver"]
["Washington","Washington"]
["Winnipeg","Winnipeg"]
["Blank","Blank"]

{"sheet":"Dropdowns","index":1,"n_rows":31,"n_cols":2,"rows_kept":31,"cut":false,"hidden":true,"merged":[]}
["QF_1","QF_5"]
[{"$f":"PlayoffTree!C7","v":"Toronto"},{"$f":"PlayoffTree!AI7","v":"Carolina"}]
[{"$f":"PlayoffTree!C9","v":"Montreal"},{"$f":"PlayoffTree!AI9","v":"Nashville"}]
[]
["QF_2","QF_6"]
[{"$f":"PlayoffTree!C14","v":"Edmonton"},{"$f":"PlayoffTree!AI14","v":"Florida"}]
[{"$f":"PlayoffTree!C16","v":"Winnipeg"},{"$f":"PlayoffTree!AI16","v":"Tampa Bay"}]
[]
["QF_3","QF_7"]
[{"$f":"PlayoffTree!C22","v":"Pittsburgh"},{"$f":"PlayoffTree!AI22","v":"Las Vegas"}]
[{"$f":"PlayoffTree!C24","v":"NYI"},{"$f":"PlayoffTree!AI24","v":"St. Louis"}]
[]
["QF_4","QF_8"]
[{"$f":"PlayoffTree!C29","v":"Washington"},{"$f":"PlayoffTree!AI29","v":"Colorado"}]
[{"$f":"PlayoffTree!C31","v":"Boston"},{"$f":"PlayoffTree!AI31","v":"Minnesota"}]
[]
["SF_1","SF_3"]
[{"$f":"PlayoffTree!G8","v":0},{"$f":"PlayoffTree!AE8","v":0}]
[{"$f":"PlayoffTree!G15","v":0},{"$f":"PlayoffTree!AE15","v":0}]
[]
["SF_2","SF_4"]
[{"$f":"PlayoffTree!G23","v":0},{"$f":"PlayoffTree!AE23","v":0}]
[{"$f":"PlayoffTree!G30","v":0},{"$f":"PlayoffTree!AE30","v":0}]
[]
["CF_1","CF_2"]
[{"$f":"PlayoffTree!K11","v":0},{"$f":"PlayoffTree!AA11","v":0}]
[{"$f":"PlayoffTree!K26","v":0},{"$f":"PlayoffTree!AA26","v":0}]
[]
["SF"]
[{"$f":"PlayoffTree!O18","v":0}]
[{"$f":"PlayoffTree!W18","v":0}]

{"sheet":"PlayoffTree","index":2,"n_rows":35,"n_cols":36,"rows_kept":35,"cut":false,"hidden":false,"merged":[[31,15,31,23],[7,6,7,7],[7,30,7,31],[10,10,10,11],[10,26,10,27],[14,6,14,7],[14,30,14,31],[1,12,1,25],[3,1,3,12],[3,25,3,36],[26,14,26,23],[29,6,29,7],[29,30,29,31],[17,14,17,15],[17,22,17,23],[22,6,22,7],[22,30,22,31],[25,10,25,11],[25,26,25,27]]}
[]
[null,null,null,null,null,null,null,null,null,null,null,null,"2021 NHL PLAYOFFS"]
[]
[]
[]
[]
[null,null,{"$f":"Standings!D3","v":"Toronto"},{"$f":"Standings!D3","v":"Toronto"},null,null,null,null,null,null,null,null,null,null,null,null,null,null,null,null,null,null,null,null,null,null,null,null,null,null,null,null,null,null,{"$f":"Standings!D15","v":"Carolina"},{"$f":"IF(AI7=\"\",\"BLANK\",VLOOKUP(AI7,TeamList,2,FALSE))","v":"Carolina"}]
[null,null,null,null,null,null,null,null,{"$f":"IF(G8=\"\",\"BLANK\",VLOOKUP(G8,Teams!A:B,2,FALSE))","v":"BLANK"},null,null,null,null,null,null,null,null,null,null,null,null,null,null,null,null,null,null,null,null,null,null,null,{"$f":"IF(AE8=\"\",\"BLANK\",VLOOKUP(AE8,TeamList,2,FALSE))","v":"BLANK"}]
[null,null,{"$f":"Standings!D6","v":"Montreal"},{"$f":"VLOOKUP(C9,Teams!A:B,2,FALSE)","v":"Montreal"},null,null,null,"Games",null,null,null,null,null,null,null,null,null,null,null,null,null,null,null,null,null,null,null,null,null,null,null,"Games",null,null,{"$f":"Standings!D18","v":"Nashville"},{"$f":"IF(AI9=\"\",\"BLANK\",VLOOKUP(AI9,TeamList,2,FALSE))","v":"Nashville"}]
[]
[]
[null,null,null,null,null,null,null,null,null,null,null,"Games",null,null,null,null,null,null,null,null,null,null,null,null,null,null,null,"Games"]
[null,null,null,null,null,null,null,null,null,null,null,null,null,{"$f":"IF(K11=\"\",\"BLANK\",VLOOKUP(K11,Teams!A:B,2,FALSE))","v":"BLANK"},null,null,null,null,null,null,null,null,null,null,null,null,null,null,{"$f":"IF(AA11=\"\",\"BLANK\",VLOOKUP(AA11,TeamList,2,FALSE))","v":"BLANK"}]
[null,null,{"$f":"Standings!D4","v":"Edmonton"},{"$f":"VLOOKUP(C14,Teams!A:B,2,FALSE)","v":"Edmonton"},null,null,null,null,null,null,null,null,null,null,null,null,null,null,null,null,null,null,null,null,null,null,null,null,null,null,null,null,null,null,{"$f":"Standings!D16","v":"Florida"},{"$f":"IF(AI14=\"\",\"BLANK\",VLOOKUP(AI14,TeamList,2,FALSE))","v":"Florida"}]
[null,null,null,null,null,null,null,null,null,null,null,null,null,null,null,null,null,null,null,null,null,null,null,null,null,null,null,null,null,null,null,null,{"$f":"IF(AE15=\"\",\"BLANK\",VLOOKUP(AE15,TeamList,2,FALSE))","v":"BLANK"}]
[null,null,{"$f":"Standings!D5","v":"Winnipeg"},{"$f":"VLOOKUP(C16,Teams!A:B,2,FALSE)","v":"Winnipeg"},null,null,null,"Games",null,null,null,null,null,null,null,null,null,null,null,null,null,null,null,null,null,null,null,null,null,null,null,"Games",null,null,{"$f":"Standings!D17","v":"Tampa Bay"},{"$f":"IF(AI16=\"\",\"BLANK\",VLOOKUP(AI16,TeamList,2,FALSE))","v":"TB"}]
[]
[]
[null,null,null,null,null,null,null,null,null,null,null,null,null,null,null,"Games",null,null,null,null,null,null,null,"Games"]
[null,null,null,null,null,null,null,null,{"$f":"IF(G15=\"\",\"BLANK\",VLOOKUP(G15,Teams!A:B,2,FALSE))","v":"BLANK"}]
[null,null,null,null,null,null,null,null,null,null,null,null,null,null,null,null,{"$f":"IF(O18=\"\",\"Blank\",VLOOKUP(O18,Teams!A:B,2,FALSE))","v":"Blank"},null,null,null,null,null,null,null,{"$f":"IF(W18=\"\",\"BLANK\",VLOOKUP(W18,TeamList,2,FALSE))","v":"BLANK"}]
[null,null,{"$f":"Standings!D9","v":"Pittsburgh"},{"$f":"VLOOKUP(C22,Teams!A:B,2,FALSE)","v":"Pittsburgh"},null,null,null,null,null,null,null,null,null,null,null,null,null,null,null,null,null,null,null,null,null,null,null,null,null,null,null,null,null,null,{"$f":"Standings!D21","v":"Las Vegas"},{"$f":"IF(AI22=\"\",\"BLANK\",VLOOKUP(AI22,TeamList,2,FALSE))","v":"LV"}]
[null,null,null,null,null,null,null,null,null,null,null,null,null,null,null,null,null,null,null,null,null,null,null,null,null,null,null,null,null,null,null,null,{"$f":"IF(AE23=\"\",\"BLANK\",VLOOKUP(AE23,TeamList,2,FALSE))","v":"BLANK"}]
[null,null,{"$f":"Standings!D12","v":"NYI"},{"$f":"VLOOKUP(C24,Teams!A:B,2,FALSE)","v":"NYI"},null,null,null,"Games",null,null,null,null,null,null,null,null,null,null,null,null,null,null,null,null,null,null,null,null,null,null,null,"Games",null,null,{"$f":"Standings!D24","v":"St. Louis"},{"$f":"IF(AI24=\"\",\"BLANK\",VLOOKUP(AI24,TeamList,2,FALSE))","v":"St.Louis"}]
[]
[]
[null,null,null,null,null,null,null,null,null,null,null,"Games",null,null,"STANLEY CUP CHAMPION",null,null,null,null,null,null,null,null,null,null,null,null,"Games"]
[null,null,null,null,null,null,null,null,null,null,null,null,null,null,null,null,null,null,null,null,null,null,null,null,null,null,null,null,{"$f":"IF(AA26=\"\",\"BLANK\",VLOOKUP(AA26,TeamList,2,FALSE))","v":"BLANK"}]
[null,null,{"$f":"Standings!D10","v":"Washington"},{"$f":"VLOOKUP(C29,Teams!A:B,2,FALSE)","v":"Washington"},null,null,null,null,{"$f":"IF(G23=\"\",\"BLANK\",VLOOKUP(G23,Teams!A:B,2,FALSE))","v":"BLANK"},null,null,null,null,null,null,null,null,null,null,null,null,null,null,null,null,null,null,null,null,null,null,null,null,null,{"$f":"Standings!D22","v":"Colorado"},{"$f":"IF(AI29=\"\",\"BLANK\",VLOOKUP(AI29,TeamList,2,FALSE))","v":"Colorado"}]
[null,null,null,null,null,null,null,null,null,null,null,null,null,null,null,null,null,null,null,null,null,null,null,null,null,null,null,null,null,null,null,null,{"$f":"IF(AE30=\"\",\"BLANK\",VLOOKUP(AE30,TeamList,2,FALSE))","v":"BLANK"}]
[null,null,{"$f":"Standings!D11","v":"Boston"},{"$f":"VLOOKUP(C31,Teams!A:B,2,FALSE)","v":"Boston"},null,null,null,"Games",null,null,null,null,null,{"$f":"IF(K26=\"\",\"BLANK\",VLOOKUP(K26,Teams!A:B,2,FALSE))","v":"BLANK"},null,null,null,null,null,null,null,null,null,null,null,null,null,null,null,null,null,"Games",null,null,{"$f":"Standings!D23","v":"Minnesota"},{"$f":"IF(AI31=\"\",\"BLANK\",VLOOKUP(AI31,TeamList,2,FALSE))","v":"Minnesota"}]
[]
[null,null,null,null,null,null,null,null,null,null,null,null,null,null,null,null,null,null,null,"Games"]
[]
[null,null,null,null,null,null,null,null,{"$f":"IF(G30=\"\",\"BLANK\",VLOOKUP(G30,Teams!A:B,2,FALSE))","v":"BLANK"},null,null,null,null,null,null,null,{"$f":"IF(P32=\"\",\"Blank\",VLOOKUP(P32,Teams!A:B,2,FALSE))","v":"Blank"}]

{"sheet":"Standings","index":3,"n_rows":24,"n_cols":7,"rows_kept":24,"cut":false,"hidden":false,"merged":[]}
[]
[null,null,"NHL Rank (Seeding)","North","Remaining"]
[null,null,5,"Toronto",{"$f":"OR(PlayoffTree!$K$11=$D3,$D3=PlayoffTree!$K$26,PlayoffTree!$AA$11=$D3,$D3=PlayoffTree!$AA$26)","v":false},{"$f":"IF(E3=TRUE,C3,\"\")","v":""},{"$f":"IF(F3=\"\",\"\",RANK(F3,$F$3:F$24,1))","v":""}]
[null,null,11,"Edmonton",{"$f":"OR(PlayoffTree!$K$11=$D4,$D4=PlayoffTree!$K$26,PlayoffTree!$AA$11=$D4,$D4=PlayoffTree!$AA$26)","v":false},{"$f":"IF(E4=TRUE,C4,\"\")","v":""},{"$f":"IF(F4=\"\",\"\",RANK(F4,$F$3:F$24,1))","v":""}]
[null,null,14,"Winnipeg",{"$f":"OR(PlayoffTree!$K$11=$D5,$D5=PlayoffTree!$K$26,PlayoffTree!$AA$11=$D5,$D5=PlayoffTree!$AA$26)","v":false},"",{"$f":"IF(F5=\"\",\"\",RANK(F5,$F$3:F$24,1))","v":""}]
[null,null,16,"Montreal",{"$f":"OR(PlayoffTree!$K$11=$D6,$D6=PlayoffTree!$K$26,PlayoffTree!$AA$11=$D6,$D6=PlayoffTree!$AA$26)","v":false},"",{"$f":"IF(F6=\"\",\"\",RANK(F6,$F$3:F$24,1))","v":""}]
[null,null,null,null,null,"",{"$f":"IF(F7=\"\",\"\",RANK(F7,$F$3:F$24,1))","v":""}]
[null,null,null,"East",null,"",{"$f":"IF(F8=\"\",\"\",RANK(F8,$F$3:F$24,1))","v":""}]
[null,null,6,"Pittsburgh",{"$f":"OR(PlayoffTree!$K$11=$D9,$D9=PlayoffTree!$K$26,PlayoffTree!$AA$11=$D9,$D9=PlayoffTree!$AA$26)","v":false},"",{"$f":"IF(F9=\"\",\"\",RANK(F9,$F$3:F$24,1))","v":""}]
[null,null,7,"Washington",{"$f":"OR(PlayoffTree!$K$11=$D10,$D10=PlayoffTree!$K$26,PlayoffTree!$AA$11=$D10,$D10=PlayoffTree!$AA$26)","v":false},"",{"$f":"IF(F10=\"\",\"\",RANK(F10,$F$3:F$24,1))","v":""}]
[null,null,10,"Boston",{"$f":"OR(PlayoffTree!$K$11=$D11,$D11=PlayoffTree!$K$26,PlayoffTree!$AA$11=$D11,$D11=PlayoffTree!$AA$26)","v":false},"",{"$f":"IF(F11=\"\",\"\",RANK(F11,$F$3:F$24,1))","v":""}]
[null,null,12,"NYI",{"$f":"OR(PlayoffTree!$K$11=$D12,$D12=PlayoffTree!$K$26,PlayoffTree!$AA$11=$D12,$D12=PlayoffTree!$AA$26)","v":false},"",{"$f":"IF(F12=\"\",\"\",RANK(F12,$F$3:F$24,1))","v":""}]
[null,null,null,null,null,"",{"$f":"IF(F13=\"\",\"\",RANK(F13,$F$3:F$24,1))","v":""}]
[null,null,null,"Central",null,"",{"$f":"IF(F14=\"\",\"\",RANK(F14,$F$3:F$24,1))","v":""}]
[null,null,3,"Carolina",{"$f":"OR(PlayoffTree!$K$11=$D15,$D15=PlayoffTree!$K$26,PlayoffTree!$AA$11=$D15,$D15=PlayoffTree!$AA$26)","v":false},"",{"$f":"IF(F15=\"\",\"\",RANK(F15,$F$3:F$24,1))","v":""}]
[null,null,4,"Florida",{"$f":"OR(PlayoffTree!$K$11=$D16,$D16=PlayoffTree!$K$26,PlayoffTree!$AA$11=$D16,$D16=PlayoffTree!$AA$26)","v":false},"",{"$f":"IF(F16=\"\",\"\",RANK(F16,$F$3:F$24,1))","v":""}]
[null,null,9,"Tampa Bay",{"$f":"OR(PlayoffTree!$K$11=$D17,$D17=PlayoffTree!$K$26,PlayoffTree!$AA$11=$D17,$D17=PlayoffTree!$AA$26)","v":false},"",{"$f":"IF(F17=\"\",\"\",RANK(F17,$F$3:F$24,1))","v":""}]
[null,null,13,"Nashville",{"$f":"OR(PlayoffTree!$K$11=$D18,$D18=PlayoffTree!$K$26,PlayoffTree!$AA$11=$D18,$D18=PlayoffTree!$AA$26)","v":false},"",{"$f":"IF(F18=\"\",\"\",RANK(F18,$F$3:F$24,1))","v":""}]
[null,null,null,null,null,"",{"$f":"IF(F19=\"\",\"\",RANK(F19,$F$3:F$24,1))","v":""}]
[null,null,null,"West",null,"",{"$f":"IF(F20=\"\",\"\",RANK(F20,$F$3:F$24,1))","v":""}]
[null,null,1,"Las Vegas",{"$f":"OR(PlayoffTree!$K$11=$D21,$D21=PlayoffTree!$K$26,PlayoffTree!$AA$11=$D21,$D21=PlayoffTree!$AA$26)","v":false},"",{"$f":"IF(F21=\"\",\"\",RANK(F21,$F$3:F$24,1))","v":""}]
[null,null,2,"Colorado",{"$f":"OR(PlayoffTree!$K$11=$D22,$D22=PlayoffTree!$K$26,PlayoffTree!$AA$11=$D22,$D22=PlayoffTree!$AA$26)","v":false},"",{"$f":"IF(F22=\"\",\"\",RANK(F22,$F$3:F$24,1))","v":""}]
[null,null,8,"Minnesota",{"$f":"OR(PlayoffTree!$K$11=$D23,$D23=PlayoffTree!$K$26,PlayoffTree!$AA$11=$D23,$D23=PlayoffTree!$AA$26)","v":false},"",{"$f":"IF(F23=\"\",\"\",RANK(F23,$F$3:F$24,1))","v":""}]
[null,null,15,"St. Louis",{"$f":"OR(PlayoffTree!$K$11=$D24,$D24=PlayoffTree!$K$26,PlayoffTree!$AA$11=$D24,$D24=PlayoffTree!$AA$26)","v":false},"",{"$f":"IF(F24=\"\",\"\",RANK(F24,$F$3:F$24,1))","v":""}]

{"sheet":"Results","index":4,"n_rows":22,"n_cols":4,"rows_kept":22,"cut":false,"hidden":true,"merged":[]}
[null,null,"Team","Games"]
[null,"ECQF1",{"$f":"PlayoffTree!G8","v":0},{"$f":"PlayoffTree!G9","v":0}]
[null,"ECQF2",{"$f":"PlayoffTree!G15","v":0},{"$f":"PlayoffTree!G16","v":0}]
[null,"ECQF3",{"$f":"PlayoffTree!G23","v":0},{"$f":"PlayoffTree!G24","v":0}]
[null,"ECQF4",{"$f":"PlayoffTree!G30","v":0},{"$f":"PlayoffTree!G31","v":0}]
[]
[null,"ECSF1",{"$f":"PlayoffTree!K11","v":0},{"$f":"PlayoffTree!K12","v":0}]
[null,"ECSF2",{"$f":"PlayoffTree!K26","v":0},{"$f":"PlayoffTree!K27","v":0}]
[]
[null,"ECF1",{"$f":"PlayoffTree!O18","v":0},{"$f":"PlayoffTree!O19","v":0}]
[]
[null,"WCQF1",{"$f":"PlayoffTree!AE8","v":0},{"$f":"PlayoffTree!AE9","v":0}]
[null,"WCQF2",{"$f":"PlayoffTree!AE15","v":0},{"$f":"PlayoffTree!AE16","v":0}]
[null,"WCQF3",{"$f":"PlayoffTree!AE23","v":0},{"$f":"PlayoffTree!AE24","v":0}]
[null,"WCQF4",{"$f":"PlayoffTree!AE30","v":0},{"$f":"PlayoffTree!AE31","v":0}]
[]
[null,"WCSF1",{"$f":"PlayoffTree!AA11","v":0},{"$f":"PlayoffTree!AA12","v":0}]
[null,"WCSF2",{"$f":"PlayoffTree!AA26","v":0},{"$f":"PlayoffTree!AA27","v":0}]
[]
[null,"WCF1",{"$f":"PlayoffTree!W18","v":0},{"$f":"PlayoffTree!W19","v":0}]
[]
[null,"SCF",{"$f":"PlayoffTree!P32","v":0},{"$f":"PlayoffTree!S33","v":0}]